[Event "*** SCC Grand Prix: Titled Tuesday Blitz"]
[Site "Chess.com"]
[Date "2020.08.11"]
[Round "1"]
[White "GelmanAlexander"]
[Black "JonasHilwerda"]
[Result "1-0"]
[WhiteElo "2570"]
[BlackElo "2206"]
[TimeControl "180+1"]
[EndTime "10:05:32 PDT"]
[Termination "GelmanAlexander won by checkmate"]

1. d4 {[%clk 0:02:57.7]} 1... Nf6 {[%clk 0:02:57.9]} 2. Nc3 {[%clk 0:02:57.5]}
2... d5 {[%clk 0:02:53.8]} 3. Bf4 {[%clk 0:02:57.1]} 3... c6 {[%clk 0:02:49.3]}
4. f3 {[%clk 0:02:55.1]} 4... Bf5 {[%clk 0:02:43.3]} 5. g4 {[%clk 0:02:54.6]}
5... Bg6 {[%clk 0:02:42.9]} 6. h4 {[%clk 0:02:54.7]} 6... h5 {[%clk 0:02:41.5]}
7. g5 {[%clk 0:02:54.6]} 7... Nfd7 {[%clk 0:02:40.7]} 8. e4 {[%clk 0:02:55]}
8... dxe4 {[%clk 0:02:38.1]} 9. fxe4 {[%clk 0:02:54.9]} 9... Qa5 {[%clk
0:02:34.1]} 10. Nf3 {[%clk 0:02:43.6]} 10... Bxe4 {[%clk 0:02:31.4]} 11. Qe2
{[%clk 0:02:41.7]} 11... Bd5 {[%clk 0:01:54.2]} 12. g6 {[%clk 0:02:30.4]} 12...
fxg6 {[%clk 0:01:48.7]} 13. O-O-O {[%clk 0:02:24]} 13... Na6 {[%clk 0:01:28.9]}
14. Nxd5 {[%clk 0:01:55.8]} 14... cxd5 {[%clk 0:00:56.6]} 15. Qe6 {[%clk
0:01:51.8]} 15... Rc8 {[%clk 0:00:30.2]} 16. Bh3 {[%clk 0:01:42.2]} 16... Qa4
{[%clk 0:00:20.6]} 17. Kb1 {[%clk 0:01:16.5]} 17... Qxc2+ {[%clk 0:00:19.8]} 18.
Ka1 {[%clk 0:01:16.8]} 18... Qa4 {[%clk 0:00:16.6]} 19. Ne5 {[%clk 0:01:11.6]}
19... Nab8 {[%clk 0:00:16.6]} 20. Qxg6+ {[%clk 0:01:08.6]} 20... Kd8 {[%clk
0:00:16.5]} 21. Nf7+ {[%clk 0:01:09.1]} 21... Ke8 {[%clk 0:00:17]} 22. Nd6+
{[%clk 0:01:09.4]} 22... Kd8 {[%clk 0:00:17.5]} 23. Nxb7# {[%clk 0:01:09.2]} 1-0

[Event "*** SCC Grand Prix: Titled Tuesday Blitz"]
[Site "Chess.com"]
[Date "2020.08.11"]
[Round "1"]
[White "GMaka"]
[Black "Bulldog167"]
[Result "0-1"]
[WhiteElo "2351"]
[BlackElo "2706"]
[TimeControl "180+1"]
[EndTime "10:05:37 PDT"]
[Termination "Bulldog167 won by resignation"]

1. d4 {[%clk 0:03:00.7]} 1... Nf6 {[%clk 0:02:59.9]} 2. Nf3 {[%clk 0:02:59.9]}
2... c5 {[%clk 0:02:59.6]} 3. d5 {[%clk 0:02:59]} 3... e6 {[%clk 0:03:00.1]} 4.
c4 {[%clk 0:02:58.8]} 4... exd5 {[%clk 0:03:00.4]} 5. cxd5 {[%clk 0:02:59.7]}
5... d6 {[%clk 0:03:01]} 6. Nc3 {[%clk 0:03:00.3]} 6... g6 {[%clk 0:03:01.4]} 7.
g3 {[%clk 0:03:00.7]} 7... Bg7 {[%clk 0:03:01.4]} 8. Bg2 {[%clk 0:03:01.6]} 8...
O-O {[%clk 0:03:01.9]} 9. O-O {[%clk 0:03:02.3]} 9... Nbd7 {[%clk 0:03:01.4]}
10. Bf4 {[%clk 0:02:58.9]} 10... Qe7 {[%clk 0:03:01.6]} 11. Re1 {[%clk
0:02:55.3]} 11... a6 {[%clk 0:03:00.4]} 12. a4 {[%clk 0:02:54.8]} 12... Rb8
{[%clk 0:02:57.9]} 13. e4 {[%clk 0:02:54.4]} 13... Ng4 {[%clk 0:02:54.8]} 14. h3
{[%clk 0:02:51.4]} 14... Nge5 {[%clk 0:02:54.6]} 15. Nxe5 {[%clk 0:02:51.7]}
15... Nxe5 {[%clk 0:02:52.9]} 16. g4 {[%clk 0:02:31.8]} 16... c4 {[%clk
0:02:39]} 17. Bg3 {[%clk 0:02:20.4]} 17... Nd3 {[%clk 0:02:36]} 18. Qc2 {[%clk
0:02:01.7]} 18... Nxe1 {[%clk 0:02:35.8]} 19. Rxe1 {[%clk 0:02:02.6]} 19... b5
{[%clk 0:02:04.1]} 20. axb5 {[%clk 0:02:03.5]} 20... axb5 {[%clk 0:02:04.2]} 21.
f4 {[%clk 0:02:01.4]} 21... b4 {[%clk 0:02:03.7]} 22. Nd1 {[%clk 0:01:56.6]}
22... Ba6 {[%clk 0:01:49.8]} 23. e5 {[%clk 0:01:51.6]} 23... Rfc8 {[%clk
0:01:49.5]} 24. e6 {[%clk 0:01:35.9]} 24... c3 {[%clk 0:01:45]} 25. b3 {[%clk
0:01:29.7]} 25... f5 {[%clk 0:01:41.4]} 26. gxf5 {[%clk 0:01:22.2]} 26... gxf5
{[%clk 0:01:42.3]} 27. Ne3 {[%clk 0:01:22.7]} 27... Bd4 {[%clk 0:01:39.8]} 28.
Kh2 {[%clk 0:01:22.9]} 28... Bxe3 {[%clk 0:01:29.4]} 29. Rxe3 {[%clk 0:01:23.8]}
29... Rf8 {[%clk 0:01:29.6]} 30. Re1 {[%clk 0:01:14.2]} 30... h6 {[%clk
0:01:16.2]} 31. Bf2 {[%clk 0:01:12.4]} 31... Kh7 {[%clk 0:01:15.7]} 32. Bd4
{[%clk 0:01:11.6]} 32... Qh4 {[%clk 0:01:09.3]} 33. Qc1 {[%clk 0:01:01]} 33...
Rg8 {[%clk 0:01:05.9]} 34. Re3 {[%clk 0:00:50.3]} 34... Qxf4+ {[%clk 0:01:04.1]}
0-1

[Event "*** SCC Grand Prix: Titled Tuesday Blitz"]
[Site "Chess.com"]
[Date "2020.08.11"]
[Round "1"]
[White "Nikithebest"]
[Black "gmmoranda"]
[Result "0-1"]
[WhiteElo "2429"]
[BlackElo "2902"]
[TimeControl "180+1"]
[EndTime "10:05:39 PDT"]
[Termination "gmmoranda won on time"]

1. e4 {[%clk 0:03:00.8]} 1... d6 {[%clk 0:02:59.8]} 2. d4 {[%clk 0:03:00.4]}
2... Nf6 {[%clk 0:03:00.3]} 3. Nc3 {[%clk 0:03:00.4]} 3... e5 {[%clk 0:03:00.9]}
4. Nge2 {[%clk 0:03:00]} 4... c6 {[%clk 0:02:59]} 5. g3 {[%clk 0:02:58.2]} 5...
Be7 {[%clk 0:02:58.7]} 6. Bg2 {[%clk 0:02:58.3]} 6... b5 {[%clk 0:02:58.6]} 7.
a3 {[%clk 0:02:58.3]} 7... Nbd7 {[%clk 0:02:58.4]} 8. O-O {[%clk 0:02:57.9]}
8... Bb7 {[%clk 0:02:58.6]} 9. h3 {[%clk 0:02:58.1]} 9... h5 {[%clk 0:02:58.3]}
10. Be3 {[%clk 0:02:57.4]} 10... Qc7 {[%clk 0:02:58.3]} 11. Qd2 {[%clk
0:02:57.1]} 11... a5 {[%clk 0:02:58.5]} 12. f4 {[%clk 0:02:48.5]} 12... O-O
{[%clk 0:02:58.1]} 13. f5 {[%clk 0:02:26.9]} 13... b4 {[%clk 0:02:57.1]} 14. Na4
{[%clk 0:02:26.3]} 14... exd4 {[%clk 0:02:47.2]} 15. Nxd4 {[%clk 0:02:17.1]}
15... c5 {[%clk 0:02:47.3]} 16. Nb5 {[%clk 0:01:57.5]} 16... Qc6 {[%clk
0:02:47.5]} 17. c4 {[%clk 0:01:57.8]} 17... Nxe4 {[%clk 0:02:46.8]} 18. Qd1
{[%clk 0:01:37]} 18... Rfe8 {[%clk 0:02:37.5]} 19. Qxh5 {[%clk 0:01:32.3]} 19...
Ndf6 {[%clk 0:02:30.4]} 20. Qd1 {[%clk 0:01:15.5]} 20... d5 {[%clk 0:02:27.4]}
21. b3 {[%clk 0:01:13.9]} 21... Rad8 {[%clk 0:02:23.5]} 22. Qf3 {[%clk
0:01:10.2]} 22... Bf8 {[%clk 0:02:20.4]} 23. g4 {[%clk 0:01:09.4]} 23... Nd7
{[%clk 0:02:08]} 24. g5 {[%clk 0:00:56]} 24... Ne5 {[%clk 0:02:07.6]} 25. Qh5
{[%clk 0:00:56.7]} 25... Ng3 {[%clk 0:01:55.6]} 26. Qh4 {[%clk 0:00:56.2]} 26...
Nxf1 {[%clk 0:01:54.9]} 27. Rxf1 {[%clk 0:00:56.4]} 27... Qd7 {[%clk 0:01:47.7]}
28. Bxc5 {[%clk 0:00:33.3]} 28... dxc4 {[%clk 0:01:43.1]} 29. Bxf8 {[%clk
0:00:29.9]} 29... Rxf8 {[%clk 0:01:44]} 30. Bxb7 {[%clk 0:00:19.8]} 30... Qxb7
{[%clk 0:01:42.3]} 31. bxc4 {[%clk 0:00:16.9]} 31... Nf3+ {[%clk 0:01:41.7]} 32.
Rxf3 {[%clk 0:00:16.8]} 32... Qxf3 {[%clk 0:01:42.6]} 0-1

[Event "*** SCC Grand Prix: Titled Tuesday Blitz"]
[Site "Chess.com"]
[Date "2020.08.11"]
[Round "1"]
[White "MashaFromRussia"]
[Black "Artur0208"]
[Result "1-0"]
[WhiteElo "2407"]
[BlackElo "2756"]
[TimeControl "180+1"]
[EndTime "10:05:40 PDT"]
[Termination "MashaFromRussia won on time"]

1. d4 {[%clk 0:02:59.1]} 1... d5 {[%clk 0:02:59.7]} 2. c4 {[%clk 0:02:59.1]}
2... e6 {[%clk 0:03:00.2]} 3. Nf3 {[%clk 0:02:59.6]} 3... Nf6 {[%clk 0:02:59.8]}
4. g3 {[%clk 0:02:59.2]} 4... dxc4 {[%clk 0:02:59.2]} 5. Bg2 {[%clk 0:02:59.7]}
5... Nc6 {[%clk 0:02:58.8]} 6. Qa4 {[%clk 0:02:58.4]} 6... Bb4+ {[%clk
0:02:57.9]} 7. Bd2 {[%clk 0:02:57.9]} 7... Nd5 {[%clk 0:02:58.5]} 8. Bxb4 {[%clk
0:02:57.8]} 8... Nxb4 {[%clk 0:02:59.4]} 9. O-O {[%clk 0:02:57.7]} 9... O-O
{[%clk 0:02:07.6]} 10. a3 {[%clk 0:02:56.3]} 10... Nd5 {[%clk 0:02:07.4]} 11.
Qxc4 {[%clk 0:02:55.9]} 11... Nb6 {[%clk 0:02:08]} 12. Qd3 {[%clk 0:02:53.2]}
12... e5 {[%clk 0:02:01]} 13. dxe5 {[%clk 0:02:41.7]} 13... Qxd3 {[%clk
0:02:01.9]} 14. exd3 {[%clk 0:02:42.3]} 14... Bf5 {[%clk 0:02:01]} 15. Nc3
{[%clk 0:02:40.7]} 15... Bxd3 {[%clk 0:02:00]} 16. Rfd1 {[%clk 0:02:39.4]} 16...
Rad8 {[%clk 0:02:00.4]} 17. b4 {[%clk 0:02:31.9]} 17... a6 {[%clk 0:01:54.8]}
18. Ne1 {[%clk 0:02:24.9]} 18... Bc4 {[%clk 0:01:44.9]} 19. f4 {[%clk
0:02:21.9]} 19... f6 {[%clk 0:01:38.7]} 20. exf6 {[%clk 0:02:19.3]} 20... gxf6
{[%clk 0:01:39.6]} 21. Kf2 {[%clk 0:02:16.3]} 21... Kf7 {[%clk 0:01:30.5]} 22.
Ne4 {[%clk 0:02:13.3]} 22... Rfe8 {[%clk 0:01:24.2]} 23. Bf3 {[%clk 0:02:02.7]}
23... Nd4 {[%clk 0:01:21.9]} 24. Bh5+ {[%clk 0:02:02.2]} 24... Kf8 {[%clk
0:01:13.2]} 25. Bxe8 {[%clk 0:02:02.6]} 25... Kxe8 {[%clk 0:01:14.1]} 26. Nxf6+
{[%clk 0:02:03]} 26... Kf7 {[%clk 0:01:12.4]} 27. Ne4 {[%clk 0:02:03.4]} 27...
Bb3 {[%clk 0:01:07.3]} 28. Rd3 {[%clk 0:01:55.7]} 28... Rd5 {[%clk 0:00:35.4]}
29. Nf3 {[%clk 0:01:37.5]} 1-0

[Event "*** SCC Grand Prix: Titled Tuesday Blitz"]
[Site "Chess.com"]
[Date "2020.08.11"]
[Round "1"]
[White "Mikhail_Golubev"]
[Black "AJSC02"]
[Result "1-0"]
[WhiteElo "2604"]
[BlackElo "2254"]
[TimeControl "180+1"]
[EndTime "10:05:42 PDT"]
[Termination "Mikhail_Golubev won by resignation"]

1. e4 {[%clk 0:03:00.9]} 1... c5 {[%clk 0:02:59.8]} 2. Nf3 {[%clk 0:03:00.1]}
2... Nc6 {[%clk 0:03:00.2]} 3. Nc3 {[%clk 0:02:59]} 3... Nf6 {[%clk 0:02:59.3]}
4. Bb5 {[%clk 0:02:57.3]} 4... Qc7 {[%clk 0:02:59.1]} 5. O-O {[%clk 0:02:55.4]}
5... Nd4 {[%clk 0:02:58.9]} 6. Bd3 {[%clk 0:02:52.2]} 6... Ng4 {[%clk
0:02:52.8]} 7. g3 {[%clk 0:02:44.5]} 7... Nxf3+ {[%clk 0:02:52.5]} 8. Qxf3
{[%clk 0:02:43.3]} 8... Ne5 {[%clk 0:02:53.4]} 9. Qf4 {[%clk 0:02:21]} 9... e6
{[%clk 0:02:51.8]} 10. Be2 {[%clk 0:02:05.1]} 10... a6 {[%clk 0:02:43.5]} 11. a4
{[%clk 0:02:01.6]} 11... Bd6 {[%clk 0:02:40.9]} 12. Qe3 {[%clk 0:01:54.4]} 12...
h5 {[%clk 0:02:35.2]} 13. f4 {[%clk 0:01:46.5]} 13... Ng4 {[%clk 0:02:32.8]} 14.
Bxg4 {[%clk 0:01:45.4]} 14... hxg4 {[%clk 0:02:32.7]} 15. e5 {[%clk 0:01:45.1]}
15... Be7 {[%clk 0:02:30.8]} 16. f5 {[%clk 0:01:29.1]} 16... d6 {[%clk
0:02:19.9]} 17. exd6 {[%clk 0:01:15.9]} 17... Bxd6 {[%clk 0:02:17.8]} 18. Ne4
{[%clk 0:01:04]} 18... O-O {[%clk 0:01:55.7]} 19. f6 {[%clk 0:00:59.9]} 19...
Be5 {[%clk 0:01:32.9]} 20. Qg5 {[%clk 0:00:54.3]} 20... Bd4+ {[%clk 0:01:26.7]}
21. Kg2 {[%clk 0:00:44.5]} 1-0

[Event "*** SCC Grand Prix: Titled Tuesday Blitz"]
[Site "Chess.com"]
[Date "2020.08.11"]
[Round "1"]
[White "eCztery"]
[Black "Azeryahu"]
[Result "1-0"]
[WhiteElo "2410"]
[BlackElo "2764"]
[TimeControl "180+1"]
[EndTime "10:05:49 PDT"]
[Termination "eCztery won on time"]

1. e4 {[%clk 0:03:00.9]} 1... e5 {[%clk 0:02:59.4]} 2. Nf3 {[%clk 0:02:59.3]}
2... Nc6 {[%clk 0:02:59.6]} 3. d4 {[%clk 0:02:56.8]} 3... exd4 {[%clk
0:02:57.9]} 4. Bc4 {[%clk 0:02:53.4]} 4... Nf6 {[%clk 0:02:53.8]} 5. O-O {[%clk
0:02:47]} 5... d6 {[%clk 0:02:44.3]} 6. Nxd4 {[%clk 0:02:46.1]} 6... Be7 {[%clk
0:02:44.2]} 7. Nc3 {[%clk 0:02:45.7]} 7... O-O {[%clk 0:02:43.4]} 8. h3 {[%clk
0:02:41.9]} 8... Re8 {[%clk 0:02:42.7]} 9. Bg5 {[%clk 0:02:40]} 9... Ne5 {[%clk
0:02:02]} 10. Bb3 {[%clk 0:02:38.2]} 10... a6 {[%clk 0:01:44.9]} 11. f4 {[%clk
0:02:35]} 11... Ng6 {[%clk 0:01:38.4]} 12. Nf5 {[%clk 0:02:30.2]} 12... Be6
{[%clk 0:01:12.7]} 13. Nxe7+ {[%clk 0:02:27.2]} 13... Qxe7 {[%clk 0:01:10.3]}
14. f5 {[%clk 0:01:50]} 14... Bxb3 {[%clk 0:01:09.5]} 15. axb3 {[%clk
0:01:42.8]} 15... Nf8 {[%clk 0:00:23.9]} 16. Nd5 {[%clk 0:01:43]} 16... Qd8
{[%clk 0:00:23.8]} 17. Nxf6+ {[%clk 0:01:34.9]} 17... gxf6 {[%clk 0:00:21.6]}
18. Bh6 {[%clk 0:01:35.5]} 18... Rxe4 {[%clk 0:00:11.3]} 19. Qf3 {[%clk
0:01:35.2]} 19... Qe7 {[%clk 0:00:07.2]} 20. Qg3+ {[%clk 0:01:34.9]} 20... Ng6
{[%clk 0:00:07.8]} 21. fxg6 {[%clk 0:01:32.8]} 21... hxg6 {[%clk 0:00:08.7]} 22.
Rae1 {[%clk 0:01:31.3]} 22... d5 {[%clk 0:00:03.8]} 23. Bd2 {[%clk 0:01:25.9]}
23... Re8 {[%clk 0:00:02.5]} 24. Bc3 {[%clk 0:01:25.2]} 24... f5 {[%clk
0:00:02.6]} 25. Rd1 {[%clk 0:01:20.4]} 25... Qe6 {[%clk 0:00:01.8]} 26. Qxc7
{[%clk 0:01:18.7]} 1-0

[Event "*** SCC Grand Prix: Titled Tuesday Blitz"]
[Site "Chess.com"]
[Date "2020.08.11"]
[Round "1"]
[White "chito89"]
[Black "Danfii"]
[Result "1-0"]
[WhiteElo "2755"]
[BlackElo "2379"]
[TimeControl "180+1"]
[EndTime "10:05:49 PDT"]
[Termination "chito89 won by resignation"]

1. Nf3 {[%clk 0:02:58]} 1... d5 {[%clk 0:02:59.8]} 2. e3 {[%clk 0:02:57.1]} 2...
Nf6 {[%clk 0:02:59.2]} 3. c4 {[%clk 0:02:56.7]} 3... e6 {[%clk 0:02:58.2]} 4. b3
{[%clk 0:02:56.6]} 4... Be7 {[%clk 0:02:57.6]} 5. Bb2 {[%clk 0:02:56.4]} 5... c5
{[%clk 0:02:58.2]} 6. cxd5 {[%clk 0:02:54.3]} 6... exd5 {[%clk 0:02:57.5]} 7. d4
{[%clk 0:02:53.6]} 7... b6 {[%clk 0:02:55.6]} 8. Be2 {[%clk 0:02:53.3]} 8... O-O
{[%clk 0:02:55.2]} 9. O-O {[%clk 0:02:53.6]} 9... Bb7 {[%clk 0:02:55.5]} 10. Nc3
{[%clk 0:02:53.1]} 10... Nc6 {[%clk 0:02:52.4]} 11. Rc1 {[%clk 0:02:52.1]} 11...
Re8 {[%clk 0:02:47.9]} 12. dxc5 {[%clk 0:02:52.1]} 12... bxc5 {[%clk 0:02:47.7]}
13. Na4 {[%clk 0:02:51.6]} 13... Ne4 {[%clk 0:02:40.8]} 14. Nd2 {[%clk
0:02:51.9]} 14... Nb4 {[%clk 0:02:14.3]} 15. Nxe4 {[%clk 0:01:53.3]} 15... dxe4
{[%clk 0:02:15.2]} 16. Nxc5 {[%clk 0:01:52.7]} 16... Bxc5 {[%clk 0:02:05.3]} 17.
Rxc5 {[%clk 0:01:53.6]} 17... Nd3 {[%clk 0:02:01.9]} 18. Rc2 {[%clk 0:01:51.8]}
18... Qd5 {[%clk 0:01:47.3]} 19. Bd4 {[%clk 0:01:48.8]} 19... Ba6 {[%clk
0:01:22.7]} 20. Rc7 {[%clk 0:01:38.4]} 20... Rac8 {[%clk 0:00:48.3]} 21. Rxa7
{[%clk 0:01:33]} 21... Bb7 {[%clk 0:00:34.2]} 22. Qd2 {[%clk 0:01:24.1]} 22...
Rcd8 {[%clk 0:00:31.4]} 23. Qa5 {[%clk 0:01:11.9]} 23... Qd7 {[%clk 0:00:21.2]}
24. Qg5 {[%clk 0:01:09.2]} 1-0

[Event "*** SCC Grand Prix: Titled Tuesday Blitz"]
[Site "Chess.com"]
[Date "2020.08.11"]
[Round "1"]
[White "Irishchessman16"]
[Black "pheonixking2000"]
[Result "0-1"]
[WhiteElo "2375"]
[BlackElo "2747"]
[TimeControl "180+1"]
[EndTime "10:05:51 PDT"]
[Termination "pheonixking2000 won by resignation"]

1. e4 {[%clk 0:03:00.9]} 1... g6 {[%clk 0:02:54.7]} 2. d4 {[%clk 0:02:59.2]}
2... Bg7 {[%clk 0:02:47.7]} 3. Nc3 {[%clk 0:02:58.3]} 3... d6 {[%clk 0:02:47.7]}
4. f4 {[%clk 0:02:42]} 4... a6 {[%clk 0:02:43]} 5. Nf3 {[%clk 0:02:38.6]} 5...
b5 {[%clk 0:02:42.4]} 6. Bd3 {[%clk 0:02:38.2]} 6... Bb7 {[%clk 0:02:42.7]} 7.
O-O {[%clk 0:02:32.2]} 7... Nf6 {[%clk 0:02:25]} 8. e5 {[%clk 0:02:29.1]} 8...
Nd5 {[%clk 0:02:22.8]} 9. Ne4 {[%clk 0:02:21.8]} 9... Nb4 {[%clk 0:02:21.4]} 10.
c3 {[%clk 0:01:37.3]} 10... Nxd3 {[%clk 0:02:20]} 11. Qxd3 {[%clk 0:01:38.2]}
11... c5 {[%clk 0:02:14]} 12. dxc5 {[%clk 0:01:26.4]} 12... dxe5 {[%clk
0:01:51]} 13. Qxd8+ {[%clk 0:01:26]} 13... Kxd8 {[%clk 0:01:51.9]} 14. Rd1+
{[%clk 0:01:26.1]} 14... Ke8 {[%clk 0:01:43.4]} 15. Neg5 {[%clk 0:01:20.5]}
15... h6 {[%clk 0:01:41.4]} 16. Nh3 {[%clk 0:01:15.4]} 16... e4 {[%clk
0:01:39.1]} 17. Ne5 {[%clk 0:01:10.6]} 17... Nc6 {[%clk 0:01:29.6]} 18. Nd7
{[%clk 0:00:34.1]} 18... Rd8 {[%clk 0:01:25]} 19. a4 {[%clk 0:00:28.7]} 19...
Rxd7 {[%clk 0:01:23.4]} 20. Rxd7 {[%clk 0:00:26.7]} 20... Kxd7 {[%clk
0:01:23.8]} 21. axb5 {[%clk 0:00:26.4]} 21... axb5 {[%clk 0:01:24.7]} 22. Be3
{[%clk 0:00:26]} 22... f5 {[%clk 0:01:24.7]} 23. Nf2 {[%clk 0:00:22.1]} 23...
Rd8 {[%clk 0:01:24.4]} 24. g4 {[%clk 0:00:20.4]} 24... e6 {[%clk 0:01:19]} 25.
h4 {[%clk 0:00:19.8]} 25... Ne7 {[%clk 0:01:19]} 26. h5 {[%clk 0:00:19.9]} 26...
Nd5 {[%clk 0:01:18.5]} 27. c6+ {[%clk 0:00:17.8]} 27... Kxc6 {[%clk 0:01:17.7]}
28. Bd4 {[%clk 0:00:15.7]} 28... Bxd4 {[%clk 0:01:17.8]} 29. cxd4 {[%clk
0:00:16.6]} 29... gxh5 {[%clk 0:01:18.4]} 30. gxh5 {[%clk 0:00:16.1]} 30... Nxf4
{[%clk 0:01:18.9]} 31. Nd1 {[%clk 0:00:15.7]} 31... Nd3 {[%clk 0:01:17.7]} 0-1

[Event "*** SCC Grand Prix: Titled Tuesday Blitz"]
[Site "Chess.com"]
[Date "2020.08.11"]
[Round "1"]
[White "eightbyeightchess"]
[Black "Colchonero64"]
[Result "0-1"]
[WhiteElo "2434"]
[BlackElo "2911"]
[TimeControl "180+1"]
[EndTime "10:05:52 PDT"]
[Termination "Colchonero64 won by checkmate"]

1. e4 {[%clk 0:03:00.9]} 1... c5 {[%clk 0:02:59.5]} 2. Nf3 {[%clk 0:03:00.9]}
2... e6 {[%clk 0:02:59.8]} 3. d4 {[%clk 0:03:01.1]} 3... cxd4 {[%clk 0:03:00.1]}
4. Nxd4 {[%clk 0:03:02]} 4... a6 {[%clk 0:03:00.5]} 5. Nc3 {[%clk 0:03:02.3]}
5... b5 {[%clk 0:02:59.7]} 6. Bd3 {[%clk 0:03:02.1]} 6... Qb6 {[%clk 0:02:59.2]}
7. Nb3 {[%clk 0:02:58.5]} 7... Qc7 {[%clk 0:02:58]} 8. O-O {[%clk 0:02:56.1]}
8... Bb7 {[%clk 0:02:57.8]} 9. f4 {[%clk 0:02:48.2]} 9... b4 {[%clk 0:02:57.8]}
10. Ne2 {[%clk 0:02:36.4]} 10... Nf6 {[%clk 0:02:57]} 11. Ng3 {[%clk 0:02:26.8]}
11... h5 {[%clk 0:02:56.6]} 12. e5 {[%clk 0:02:19.7]} 12... h4 {[%clk
0:02:56.4]} 13. Nh1 {[%clk 0:01:49.7]} 13... h3 {[%clk 0:02:40.9]} 14. Ng3
{[%clk 0:01:41.6]} 14... hxg2 {[%clk 0:02:37.4]} 15. Rf2 {[%clk 0:01:40.7]}
15... Nd5 {[%clk 0:02:34.9]} 16. f5 {[%clk 0:01:38.6]} 16... Nc6 {[%clk
0:02:32.6]} 17. fxe6 {[%clk 0:01:37.7]} 17... dxe6 {[%clk 0:02:32.6]} 18. Bg5
{[%clk 0:01:29.1]} 18... Nxe5 {[%clk 0:02:30]} 19. Be4 {[%clk 0:01:11.4]} 19...
Bd6 {[%clk 0:02:22]} 20. Bxg2 {[%clk 0:01:06.8]} 20... f6 {[%clk 0:02:17.5]} 21.
Bd2 {[%clk 0:00:37.1]} 21... O-O-O {[%clk 0:02:16.4]} 22. Qe2 {[%clk 0:00:25.9]}
22... Rh4 {[%clk 0:02:06]} 23. c3 {[%clk 0:00:24.8]} 23... Kb8 {[%clk
0:01:47.6]} 24. cxb4 {[%clk 0:00:24.6]} 24... Ng4 {[%clk 0:01:28.2]} 25. Bxd5
{[%clk 0:00:11]} 25... Bxd5 {[%clk 0:01:16.5]} 26. Qxa6 {[%clk 0:00:11.1]} 26...
Bxg3 {[%clk 0:01:09.1]} 27. hxg3 {[%clk 0:00:06.9]} 27... Rh1# {[%clk
0:01:08.7]} 0-1

[Event "*** SCC Grand Prix: Titled Tuesday Blitz"]
[Site "Chess.com"]
[Date "2020.08.11"]
[Round "1"]
[White "Grandelicious"]
[Black "Tsyhanchuk_Stanislav"]
[Result "1-0"]
[WhiteElo "2761"]
[BlackElo "2387"]
[TimeControl "180+1"]
[EndTime "10:05:52 PDT"]
[Termination "Grandelicious won by resignation"]

1. Nf3 {[%clk 0:03:00.9]} 1... Nf6 {[%clk 0:02:58.3]} 2. g3 {[%clk 0:03:00.1]}
2... c5 {[%clk 0:02:55.5]} 3. Bg2 {[%clk 0:03:00.1]} 3... Nc6 {[%clk 0:02:55.6]}
4. c4 {[%clk 0:03:00.5]} 4... g6 {[%clk 0:02:55.3]} 5. d4 {[%clk 0:03:00.1]}
5... cxd4 {[%clk 0:02:55]} 6. Nxd4 {[%clk 0:03:01]} 6... Bg7 {[%clk 0:02:55.2]}
7. Nc3 {[%clk 0:03:00.8]} 7... O-O {[%clk 0:02:54.5]} 8. O-O {[%clk 0:03:00.4]}
8... Nxd4 {[%clk 0:02:46.6]} 9. Qxd4 {[%clk 0:03:01.3]} 9... d6 {[%clk
0:02:47.1]} 10. Qd3 {[%clk 0:03:01.3]} 10... Rb8 {[%clk 0:02:46.2]} 11. Rd1
{[%clk 0:03:00.2]} 11... Bd7 {[%clk 0:02:44.9]} 12. Bf4 {[%clk 0:02:50.2]} 12...
Bc6 {[%clk 0:02:44.7]} 13. c5 {[%clk 0:02:36.2]} 13... e5 {[%clk 0:02:33.4]} 14.
Be3 {[%clk 0:02:30.7]} 14... Bxg2 {[%clk 0:02:25.3]} 15. Kxg2 {[%clk 0:02:31.6]}
15... dxc5 {[%clk 0:01:54.2]} 16. Bxc5 {[%clk 0:02:32.5]} 16... Re8 {[%clk
0:01:54.6]} 17. Bxa7 {[%clk 0:02:27.6]} 17... Ra8 {[%clk 0:01:52.4]} 18. Qxd8
{[%clk 0:02:26.3]} 18... Rexd8 {[%clk 0:01:52.3]} 19. Rxd8+ {[%clk 0:02:26.5]}
19... Rxd8 {[%clk 0:01:52.7]} 20. Rd1 {[%clk 0:02:26.4]} 20... Rxd1 {[%clk
0:01:48.7]} 21. Nxd1 {[%clk 0:02:27.3]} 21... Nd5 {[%clk 0:01:49.2]} 22. e4
{[%clk 0:02:18.7]} 22... Nb4 {[%clk 0:01:49.2]} 23. a3 {[%clk 0:02:15.9]} 23...
Nc6 {[%clk 0:01:44]} 24. Bb6 {[%clk 0:02:15.1]} 24... f5 {[%clk 0:01:35.8]} 25.
f3 {[%clk 0:02:15.3]} 25... Kf7 {[%clk 0:01:35.7]} 26. Kf2 {[%clk 0:02:12.9]}
26... Ke6 {[%clk 0:01:35.2]} 27. Ke2 {[%clk 0:02:11.4]} 27... h5 {[%clk
0:01:29.8]} 28. Nf2 {[%clk 0:02:06.7]} 28... h4 {[%clk 0:01:21.5]} 29. g4 {[%clk
0:02:02.1]} 29... Bh6 {[%clk 0:01:20.1]} 30. Nd3 {[%clk 0:01:58.9]} 30... fxg4
{[%clk 0:01:14]} 31. fxg4 {[%clk 0:01:57.7]} 31... Nd4+ {[%clk 0:01:02.2]} 32.
Bxd4 {[%clk 0:01:09.6]} 32... exd4 {[%clk 0:01:03.1]} 33. Nc5+ {[%clk
0:01:09.4]} 33... Ke5 {[%clk 0:01:03.2]} 34. Kf3 {[%clk 0:01:08.9]} 34... d3
{[%clk 0:00:47.9]} 35. Nxd3+ {[%clk 0:01:07.2]} 35... Kd4 {[%clk 0:00:47.9]} 36.
Nf4 {[%clk 0:01:06.2]} 36... b5 {[%clk 0:00:43.4]} 37. g5 {[%clk 0:01:03.3]} 1-0

[Event "*** SCC Grand Prix: Titled Tuesday Blitz"]
[Site "Chess.com"]
[Date "2020.08.11"]
[Round "1"]
[White "rynos0411"]
[Black "GMKrikor"]
[Result "0-1"]
[WhiteElo "2363"]
[BlackElo "2727"]
[TimeControl "180+1"]
[EndTime "10:05:52 PDT"]
[Termination "GMKrikor won by resignation"]

1. d4 {[%clk 0:02:59.7]} 1... Nf6 {[%clk 0:02:59.6]} 2. c4 {[%clk 0:02:55.6]}
2... g6 {[%clk 0:02:59.8]} 3. Nc3 {[%clk 0:02:55]} 3... d5 {[%clk 0:02:59]} 4.
cxd5 {[%clk 0:02:54.7]} 4... Nxd5 {[%clk 0:02:59.9]} 5. Na4 {[%clk 0:02:54.4]}
5... e5 {[%clk 0:02:48.3]} 6. e4 {[%clk 0:02:43.3]} 6... Nf6 {[%clk 0:02:10.3]}
7. dxe5 {[%clk 0:02:18.9]} 7... Qxd1+ {[%clk 0:02:07.6]} 8. Kxd1 {[%clk
0:02:18.6]} 8... Nxe4 {[%clk 0:01:39]} 9. Be3 {[%clk 0:02:17.1]} 9... Bd7 {[%clk
0:01:39.4]} 10. Nc3 {[%clk 0:02:10.2]} 10... Nxc3+ {[%clk 0:01:37.6]} 11. bxc3
{[%clk 0:02:08.3]} 11... Nc6 {[%clk 0:01:38]} 12. f4 {[%clk 0:01:56.1]} 12...
O-O-O {[%clk 0:01:35.4]} 13. Ke1 {[%clk 0:01:46.1]} 13... Bg7 {[%clk 0:01:24.1]}
14. Nf3 {[%clk 0:01:43.8]} 14... f6 {[%clk 0:01:23]} 15. exf6 {[%clk 0:01:27.2]}
15... Bxf6 {[%clk 0:01:23.9]} 16. Rc1 {[%clk 0:01:25.4]} 16... Rhe8 {[%clk
0:00:51.4]} 17. Kf2 {[%clk 0:01:25]} 17... Be6 {[%clk 0:00:41.1]} 18. Bb5 {[%clk
0:01:08.9]} 18... Bd5 {[%clk 0:00:26.7]} 19. c4 {[%clk 0:00:58.4]} 19... Bxf3
{[%clk 0:00:22.2]} 20. Kxf3 {[%clk 0:00:59.3]} 20... Rd3 {[%clk 0:00:21.8]} 0-1